bitfinex/quotes_ETHUSD_20250822
["timestamp","ask_amount","ask_price","bid_price","bid_amount"]
[1755852169812,0.00020001,4349.3,4349.2,2.95927342]
[1755852169999,0.00020001,4349.3,4349.2,8.91227342]
[1755852170194,0.00020001,4349.3,4349.2,9.02747342]
[1755852170506,0.00020001,4349.3,4349.2,9.45907342]
[1755852171987,0.00020001,4349.3,4349.2,12.45907342]
[1755852172317,0.001,4349.7,4349.2,12.45907342]
[1755852172318,1e-08,4349.7,4349.5,0.66]
[1755852172609,1e-08,4349.8,4349.7,5.95900912]
[1755852172788,1e-08,4349.8,4349.7,6.24500912]
[1755852172986,1e-08,4349.8,4349.7,6.67660912]
[1755852173241,1e-08,4349.8,4349.7,6.88393912]
[1755852174307,1e-08,4350.3,4350.2,2.95874488]
[1755852174511,1e-08,4350.3,4350.2,12.50361937]
[1755852174681,1e-08,4350.3,4350.2,13.05041937]
[1755852174876,0.02,4351.8,4351.7,2.29795252]
[1755852175078,0.02,4351.8,4351.7,6.19295252]
[1755852175500,0.02,4351.8,4351.7,6.47895252]
[1755852175704,0.02,4351.8,4351.7,6.19295252]
[1755852176682,0.02,4351.8,4351.7,2.29795252]
[1755852176881,0.02,4351.8,4351.7,6.19395252]
[1755852177092,0.02,4351.8,4351.7,6.77997517]
[1755852178510,0.02,4351.8,4351.7,7.21157517]
[1755852180754,0.169,4351.8,4351.7,6.49097517]
[1755852180892,0.02,4351.8,4351.7,6.49097517]
[1755852181220,0.02,4351.8,4351.7,6.77697517]
[1755852181413,0.02,4351.8,4351.7,7.43697517]
[1755852181617,0.02,4351.8,4351.7,7.86857517]
[1755852181816,0.02,4351.8,4351.7,7.98377517]
[1755852182050,0.0192,4351.8,4351.7,7.98377517]
[1755852182406,1e-08,4351.8,4351.7,10.98377517]
[1755852184441,1e-08,4352.1,4352.0,2.95779411]
[1755852184646,1e-08,4352.1,4352.0,25.21303808]
[1755852184858,1e-08,4352.1,4352.0,25.62166014]
[1755852185142,0.001,4353.1,4352.3,3.66]
[1755852185305,1e-08,4353.1,4353.0,5.95726625]
[1755852185511,1e-08,4353.1,4353.0,10.13326625]
[1755852185752,1e-08,4353.1,4353.0,10.72914074]
[1755852186043,1e-08,4353.1,4353.0,11.16074074]
[1755852187610,1e-08,4353.1,4353.0,11.16074074]
[1755852188032,1e-08,4353.1,4353.0,7.27074074]
[1755852188272,1e-08,4353.1,4353.0,11.15774074]
[1755852188912,1e-08,4353.1,4353.0,10.43914074]
[1755852189146,0.17810001,4353.1,4353.0,9.84426625]
[1755852190250,0.17810001,4353.1,4353.0,6.84326625]
[1755852190452,0.17810001,4353.1,4353.0,2.95726625]
[1755852190653,1e-08,4353.1,4353.0,7.18203891]
[1755852190953,0.29670001,4353.1,4353.0,6.84326625]
[1755852191112,0.29670001,4353.1,4353.0,7.73916339]
[1755852191313,1e-08,4353.1,4353.0,7.73916339]
[1755852191954,0.29670001,4353.1,4353.0,7.73816339]
[1755852192165,1e-08,4353.1,4353.0,7.73816339]
[1755852193065,1e-08,4353.1,4353.0,7.73716339]
[1755852193567,0.29670001,4353.1,4353.0,3.85316339]
[1755852193768,0.29670001,4353.1,4352.9,2.41251902]
[1755852193769,0.61280001,4353.1,4352.9,0.1152]
[1755852193969,0.29670001,4353.1,4353.0,6.18026625]
[1755852194125,0.61280001,4353.1,4353.0,6.18026625]
[1755852194326,0.29590001,4353.1,4353.0,6.18026625]
[1755852194579,0.36058338,4353.2,4353.1,2.29721348]
[1755852194760,0.53708338,4353.2,4353.1,2.29721348]
[1755852194946,0.53708338,4353.2,4353.1,6.18021348]
[1755852195145,0.36058338,4353.2,4353.1,7.15601348]
[1755852195480,0.001,4353.2,4353.1,7.62421348]
[1755852195638,0.001,4353.2,4353.1,7.86164831]
[1755852196468,0.2977,4353.2,4353.1,7.08164831]
[1755852196661,0.2977,4353.2,4353.1,7.08364831]
[1755852196977,0.001,4353.2,4353.1,7.08364831]
[1755852197346,0.001,4353.2,4353.1,7.39944831]
[1755852199051,0.001,4353.2,4353.1,7.08364831]
[1755852199450,0.001,4353.2,4353.1,3.19464831]
[1755852199874,0.2977,4353.2,4353.1,6.20618561]
[1755852200048,0.001,4353.2,4353.1,6.18321348]
[1755852200464,0.001,4353.2,4353.1,6.49901348]
[1755852200657,0.001,4353.2,4353.1,6.96721348]
[1755852200851,0.001,4353.2,4353.1,7.74241348]
[1755852201789,0.001,4353.2,4353.1,7.74641348]
[1755852202351,0.001,4353.2,4353.1,7.74741348]
[1755852202573,0.001,4353.2,4353.1,7.74641348]
[1755852204278,0.001,4353.2,4353.1,7.27821348]
[1755852204881,0.001,4353.2,4353.1,7.27721348]
[1755852205067,0.001,4353.2,4353.1,6.96141348]
[1755852205368,0.1775,4353.2,4353.1,6.96041348]
[1755852206601,0.1767,4353.2,4353.1,2.41241348]
[1755852206880,0.6102,4353.2,4353.1,6.18421348]
[1755852207086,0.1767,4353.2,4353.1,6.18421348]
[1755852209596,0.0002,4353.2,4353.1,6.50001348]
[1755852209771,0.0002,4353.2,4353.1,7.06394321]
[1755852210100,0.0002,4353.2,4353.1,8.03974321]
[1755852210258,0.0002,4353.2,4353.1,8.50794321]
[1755852210883,0.0002,4353.2,4353.1,8.62314321]
[1755852211889,0.1775,4353.2,4353.1,3.07241348]
[1755852212197,0.611,4353.2,4353.1,6.19121348]
[1755852212500,0.1775,4353.2,4353.1,6.19121348]
[1755852213592,0.1775,4353.2,4353.1,6.50701348]
[1755852213593,0.0002,4353.2,4353.1,6.50701348]
[1755852213792,0.0002,4353.2,4353.1,6.97521348]
[1755852213973,0.0002,4353.2,4353.1,6.50701348]
[1755852214158,0.0002,4353.2,4353.1,6.19121348]
[1755852214591,0.2969,4353.2,4353.1,6.19021348]
[1755852214794,1.10841145,4353.2,4353.1,6.19421348]
[1755852215162,1.46799738,4353.2,4353.1,0.004]
[1755852215361,1.61499712,4353.2,4353.1,6.19521348]
[1755852215575,0.97168593,4353.2,4353.1,6.19521348]
[1755852215825,0.2969,4353.2,4353.1,6.19521348]
[1755852216001,0.0002,4353.2,4353.1,6.19521348]
[1755852216786,0.0002,4353.2,4353.1,6.51101348]
[1755852217398,0.0002,4353.2,4353.1,6.97921348]
[1755852217571,0.0002,4353.2,4353.1,7.63921348]
[1755852218701,0.0002,4353.2,4353.1,7.17101348]
[1755852218867,0.0002,4353.2,4353.1,2.30121348]
[1755852218868,0.1541,4353.2,4353.1,2.30121348]
[1755852219498,0.6106,4353.2,4353.1,6.19521348]
[1755852220109,0.1541,4353.2,4353.1,6.19521348]
[1755852221478,0.1541,4353.2,4353.1,2.30121348]
[1755852221776,0.6092,4353.2,4353.1,6.19421348]
[1755852223070,0.51369135,4353.2,4353.1,6.19421348]
[1755852223275,0.35959135,4353.2,4353.1,6.19421348]
[1755852223793,0.51669135,4353.2,4353.1,6.19421348]
[1755852223998,0.35959135,4353.2,4353.1,6.19421348]
[1755852224199,0.35959135,4353.2,4353.1,6.50291348]
[1755852228015,0.36409135,4353.2,4353.1,6.19121348]
[1755852229811,0.0045,4353.2,4353.1,6.19121348]
[1755852231107,0.0037,4353.2,4353.1,6.19121348]
[1755852232016,0.0037,4353.2,4353.1,6.18821348]
[1755852234311,0.0004,4353.3,4353.2,2.2971607]
[1755852234510,0.1617,4353.3,4353.2,2.2971607]
[1755852235120,0.1617,4353.3,4353.1,0.004]
[1755852235293,0.1617,4353.3,4353.2,3.885]
[1755852235492,0.6094,4353.3,4353.2,3.885]
[1755852235823,0.6094,4353.3,4353.1,0.004]
[1755852235824,2.2971607,4353.2,4353.1,0.004]
[1755852236021,3.61819266,4353.2,4353.1,0.004]
[1755852236326,6.61819266,4353.2,4353.1,0.004]
[1755852237009,7.23544988,4353.2,4353.1,0.004]
[1755852237215,6.74750435,4353.2,4353.1,0.004]
[1755852237415,9.10956807,4353.2,4353.1,0.004]
[1755852239513,9.95968748,4353.2,4353.1,0.004]
[1755852240428,9.46901871,4353.2,4353.1,0.004]
[1755852242399,9.12437587,4353.2,4353.1,0.004]
[1755852242705,9.46844075,4353.2,4353.1,0.004]
[1755852243216,10.08762678,4353.2,4353.1,0.004]
[1755852243417,10.08682678,4353.2,4353.1,0.004]
[1755852244242,9.9578031,4353.2,4353.1,0.004]
[1755852245851,9.5129031,4353.2,4353.1,0.004]
[1755852246218,9.51273081,4353.2,4353.1,0.004]
[1755852246420,15.98891148,4353.2,4353.1,0.004]
[1755852246826,15.36972372,4353.2,4353.1,0.004]
[1755852247164,3.85597554,4353.2,4353.1,0.7717]
[1755852247325,3.49631145,4353.2,4353.1,0.7717]
[1755852248145,0.0004,4353.3,4353.1,0.7717]
[1755852248369,0.0004,4353.3,4353.2,2.7895323]
[1755852248546,0.0004,4353.3,4353.2,3.61978195]
[1755852250531,0.35996454,4353.3,4353.2,3.61978195]
[1755852251534,0.35996454,4353.3,4353.2,3.59681035]
[1755852253225,0.35996454,4353.3,4353.1,0.004]
[1755852253530,0.36516454,4353.3,4353.1,0.004]
[1755852254249,0.36516454,4353.3,4353.1,2.30120051]
[1755852254545,0.35996454,4353.3,4353.1,2.30120051]
[1755852254930,0.35996454,4353.3,4353.1,0.004]
[1755852255258,0.35996454,4353.3,4353.2,3.0568607]
[1755852255733,0.001,4353.4,4353.3,2.29710794]
[1755852256062,0.001,4353.4,4353.3,3.05680794]
[1755852256428,0.001,4353.4,4353.3,3.07977901]
[1755852256954,0.001,4353.4,4353.3,3.98330677]
[1755852259154,0.36057194,4353.4,4353.3,3.98330677]
[1755852259356,0.36057194,4353.4,4353.3,3.05680794]
[1755852260835,0.36057194,4353.4,4353.3,6.94080794]
[1755852263639,0.36057194,4353.4,4353.3,6.94480794]
[1755852264767,0.49857194,4353.4,4353.3,3.888]
[1755852265764,0.49857194,4353.4,4353.3,6.18510794]
[1755852266751,0.36057194,4353.4,4353.3,6.18510794]
[1755852267880,0.35977194,4353.4,4353.3,6.18510794]
[1755852268036,0.35977194,4353.4,4353.3,6.47540794]
[1755852269370,0.35977194,4353.4,4353.3,6.94380794]
[1755852273144,0.36447194,4353.4,4353.3,6.18410794]
[1755852273341,0.35977194,4353.4,4353.3,6.18410794]
[1755852273769,0.35977194,4353.4,4353.3,6.47440794]
[1755852273972,0.35977194,4353.4,4353.3,6.94380794]
[1755852274173,0.35977194,4353.4,4353.3,7.82136823]
[1755852277769,0.0002,4353.4,4353.3,7.82136823]
[1755852280075,0.0004,4353.6,4353.5,2.29700241]
[1755852280273,0.0004,4353.6,4353.5,6.48877243]
[1755852280473,0.0004,4353.6,4353.5,7.30453926]
[1755852281078,0.35996521,4353.6,4353.5,7.30453926]
[1755852283991,0.35996521,4353.6,4353.5,3.42153926]
[1755852284190,0.35996521,4353.6,4353.5,6.92020241]
[1755852284701,0.35996521,4353.6,4353.5,6.18000241]
[1755852285197,0.35996521,4353.6,4353.5,6.46580241]
[1755852285914,0.0004,4353.6,4353.5,6.46580241]
[1755852287598,0.0004,4353.6,4353.5,6.92020241]
[1755852287787,0.0004,4353.6,4353.5,7.84233239]
[1755852289587,0.35995808,4353.6,4353.5,7.84233239]
[1755852289797,0.35995808,4353.6,4353.5,6.92020241]
[1755852291095,0.35995808,4353.6,4353.5,6.46580241]
[1755852291399,0.50045808,4353.6,4353.5,6.18000241]
[1755852291582,0.50045808,4353.6,4353.5,6.17900241]
[1755852292203,0.49965808,4353.6,4353.5,6.17900241]
[1755852292401,0.35915808,4353.6,4353.5,6.17900241]
[1755852293474,0.35915808,4353.6,4353.5,6.46480241]
[1755852294373,0.35915808,4353.6,4353.5,6.91920241]
[1755852294800,0.35915808,4353.6,4353.5,7.57920241]
[1755852295003,0.001,4353.7,4353.6,2.29694965]
[1755852295173,0.001,4353.7,4353.6,3.03714965]
[1755852295699,0.001,4353.7,4353.6,3.12922065]
[1755852295873,0.001,4353.7,4353.6,3.15219014]
[1755852297107,0.001,4353.7,4353.6,7.01122065]
[1755852298371,0.001,4353.7,4353.6,2.38902065]
[1755852298576,0.001,4353.7,4353.6,6.27102065]
[1755852298908,0.001,4353.7,4353.6,6.55682065]
[1755852299109,0.001,4353.7,4353.6,7.01122065]
[1755852299472,0.001,4353.7,4353.6,3.12922065]
[1755852299680,0.001,4353.7,4352.8,0.004]
[1755852299681,3.0,4353.6,4352.8,0.004]
[1755852299875,2.55631902,4352.9,4352.8,0.004]
[1755852300113,8.52231235,4352.9,4352.8,0.004]
[1755852300418,2.29742458,4352.7,4352.6,0.004]
[1755852300584,11.13974952,4352.7,4352.6,0.004]
[1755852300779,15.16910609,4352.7,4352.6,0.004]
[1755852300981,2.95753015,4352.5,4351.6,0.004]
[1755852301207,0.66,4352.2,4351.6,1e-08]
[1755852301404,11.66132448,4351.7,4351.6,1e-08]
[1755852301685,17.95888807,4351.7,4351.6,1e-08]
[1755852301893,20.58250271,4351.7,4351.6,1e-08]
[1755852302391,29.15579909,4351.7,4351.6,1e-08]
[1755852302787,28.92798318,4351.7,4351.6,1e-08]
[1755852303114,30.27955673,4351.7,4351.6,1e-08]
[1755852303279,29.04168633,4351.7,4351.6,1e-08]
[1755852303882,24.40568633,4351.7,4351.6,1e-08]
[1755852304220,28.37868633,4351.7,4351.6,1e-08]
[1755852304385,28.07140871,4351.7,4351.6,1e-08]
[1755852304719,28.07060871,4351.7,4351.6,1e-08]
[1755852306325,28.55742135,4351.7,4351.6,1e-08]
[1755852306521,28.5567168,4351.7,4351.6,1e-08]
[1755852307117,28.34299054,4351.7,4351.6,1e-08]
[1755852307311,27.94112429,4351.7,4351.6,1e-08]
[1755852308020,23.96812429,4351.7,4351.6,1e-08]
[1755852308223,27.93812429,4351.7,4351.6,1e-08]
[1755852308434,27.93612429,4351.7,4351.6,1e-08]
[1755852308790,27.22710248,4351.7,4351.6,1e-08]
[1755852310492,23.75068603,4351.7,4351.6,1e-08]
[1755852310812,27.71668603,4351.7,4351.6,1e-08]
[1755852312293,28.37668603,4351.7,4351.6,1e-08]
[1755852312497,28.37368603,4351.7,4351.6,1e-08]
[1755852316126,27.39378603,4351.7,4351.6,1e-08]
[1755852316336,23.07093536,4351.7,4351.6,1e-08]
[1755852316540,27.02993536,4351.7,4351.6,1e-08]
[1755852316930,27.02913536,4351.7,4351.6,1e-08]
[1755852317110,27.34903536,4351.7,4351.6,1e-08]
[1755852317935,8.3854348,4351.7,4351.6,1e-08]
[1755852318137,12.3414348,4351.7,4351.6,1e-08]
[1755852318503,12.3424348,4351.7,4351.6,1e-08]
[1755852319234,2.68268228,4351.7,4351.6,0.31200001]
[1755852319444,4.43097868,4351.7,4351.6,0.75000001]
[1755852319603,7.43097868,4351.7,4351.6,0.75000001]
[1755852319831,7.43097868,4351.7,4351.6,1e-08]
[1755852320472,9.7289312,4351.7,4351.6,1e-08]
[1755852320624,7.43097868,4351.7,4351.6,1e-08]
[1755852321068,9.7289312,4351.7,4351.6,1e-08]
[1755852321279,11.58422572,4351.7,4351.6,1e-08]
[1755852321430,12.19870516,4351.7,4351.6,1e-08]
[1755852321625,12.19670516,4351.7,4351.6,1e-08]
[1755852321870,12.08150516,4351.7,4351.6,1e-08]
[1755852323253,11.6804563,4351.7,4351.6,1e-08]
[1755852324250,12.49976222,4351.7,4351.6,1e-08]
[1755852324434,12.62791681,4351.7,4351.6,1e-08]
[1755852324852,12.28633164,4351.7,4351.6,1e-08]
[1755852325050,11.80877116,4351.7,4351.6,1e-08]
[1755852325434,11.80889359,4351.7,4351.6,1e-08]
[1755852325754,11.80909861,4351.7,4351.6,1e-08]
[1755852326247,13.04547216,4351.7,4351.6,1e-08]
[1755852326449,19.97337602,4351.7,4351.6,1e-08]
[1755852327161,18.73700247,4351.7,4351.1,0.004]
[1755852327347,8.78082044,4351.2,4351.1,0.004]
[1755852327546,13.56121422,4351.2,4351.1,0.004]
[1755852328266,14.7963506,4351.2,4351.1,0.316]
[1755852329066,15.15536859,4351.2,4351.1,0.316]
[1755852329263,2.29837504,4350.9,4350.8,0.462]
[1755852329467,10.07733668,4350.9,4350.8,0.462]
[1755852329677,10.07733668,4350.9,4350.8,0.774]
[1755852330479,10.07733668,4350.9,4350.8,0.336]
[1755852331352,10.07733668,4350.9,4350.8,0.774]
[1755852331869,10.19253668,4350.9,4350.8,0.774]
[1755852332871,10.19253668,4350.9,4350.8,0.336]
[1755852334142,11.02414988,4350.9,4350.8,0.336]
[1755852334342,11.36912118,4350.9,4350.8,0.336]
[1755852334872,11.36913134,4350.9,4350.8,0.336]
[1755852335060,13.31374206,4350.9,4350.8,0.024]
[1755852335463,13.97374206,4350.9,4350.8,0.024]
[1755852335665,2.2984807,4350.7,4350.6,0.004]
[1755852335890,11.86982189,4350.7,4350.6,0.004]
[1755852336043,12.97802189,4350.7,4350.6,0.004]
[1755852336239,2.29869204,4350.3,4350.2,0.004]
[1755852336473,18.72920948,4350.3,4350.2,0.004]
[1755852336671,19.17740948,4350.3,4350.2,0.004]
[1755852336894,21.53195576,4350.3,4350.2,0.004]
[1755852337554,22.19195576,4350.3,4350.2,0.004]
[1755852337943,18.25395576,4350.3,4350.2,0.004]
[1755852338143,22.19095576,4350.3,4350.2,0.004]
[1755852338347,20.67715576,4350.3,4350.2,0.3139]
[1755852338655,18.32260948,4350.3,4350.2,0.7705]
[1755852338851,5.71951358,4350.3,4350.2,0.7705]
[1755852339051,11.95420562,4350.3,4350.2,0.7705]
[1755852339258,7.88951358,4350.3,4350.2,0.7705]
[1755852339451,10.18820562,4350.3,4350.2,0.7705]
[1755852340253,11.78867847,4350.3,4350.2,0.004]
[1755852342756,11.46970209,4350.3,4350.2,0.3139]
[1755852342955,11.46870209,4350.3,4350.2,0.3139]
[1755852343679,11.46836829,4350.3,4350.2,0.7705]
[1755852343879,10.18369544,4350.3,4350.2,0.7705]
[1755852344461,10.18367067,4350.3,4350.2,0.3139]
[1755852346193,10.1836625,4350.3,4350.2,0.3139]
[1755852346397,10.1836625,4350.3,4350.2,0.004]
[1755852346555,16.98206636,4350.3,4350.2,0.004]
[1755852346755,18.59433273,4350.3,4350.2,0.004]
[1755852347058,8.17672887,4350.3,4350.2,0.7705]
[1755852347297,10.1806625,4350.3,4350.2,0.7705]
[1755852347597,11.41997803,4350.3,4350.2,0.7705]
[1755852348291,7.48797803,4350.3,4350.2,0.7705]
[1755852348494,11.41997803,4350.3,4350.2,0.7705]
[1755852349198,11.77985604,4350.3,4350.2,0.3139]
[1755852349356,13.83596176,4350.3,4350.2,0.004]
[1755852349770,13.49171219,4350.3,4350.2,0.3139]
[1755852349972,13.835965,4350.3,4350.2,0.7705]
[1755852350581,11.77985928,4350.3,4350.2,0.7705]
[1755852351213,11.28933839,4350.3,4350.2,0.7705]
[1755852351872,11.28533839,4350.3,4350.2,0.3139]
[1755852352073,2.29874488,4350.2,4350.1,0.004]
[1755852352304,8.56287458,4350.2,4350.1,0.004]
[1755852352602,10.99187458,4350.2,4350.1,0.004]
[1755852352772,10.86277978,4350.2,4350.1,0.004]
[1755852352967,10.86277978,4350.2,4349.8,0.02]
[1755852352968,2.29890342,4349.9,4349.8,0.02]
[1755852353212,16.9800438,4349.9,4349.8,0.02]
[1755852353412,19.21299706,4349.9,4349.8,0.02]
[1755852353578,19.3413654,4349.9,4349.8,0.02]
[1755852353774,19.34133536,4349.9,4349.8,0.02]
[1755852355206,20.58123436,4349.9,4349.8,0.02]
[1755852355707,20.26543436,4349.9,4349.8,0.02]
[1755852355893,16.33843436,4349.9,4349.8,0.3299]
[1755852356097,20.26243436,4349.9,4349.8,0.3299]
[1755852356409,19.02253536,4349.9,4349.8,0.3299]
[1755852356907,19.02253536,4349.9,4349.8,0.02]
[1755852357788,16.66119573,4349.9,4349.8,0.3299]
[1755852357995,10.66726857,4349.9,4349.8,0.7865]
[1755852358308,10.49235406,4349.9,4349.8,0.02]
[1755852358620,13.13918622,4349.9,4349.8,0.02]
[1755852359320,13.13919824,4349.9,4349.8,0.02]
[1755852360514,14.37909724,4349.9,4349.8,0.02]
[1755852360716,13.91919724,4349.9,4349.8,0.02]
[1755852361298,13.79003857,4349.9,4349.8,0.02]
[1755852361498,13.91932826,4349.9,4349.8,0.02]
[1755852362091,13.91931477,4349.9,4349.8,0.02]
[1755852362722,12.67941577,4349.9,4349.8,0.02]
[1755852363193,13.13931577,4349.9,4349.8,0.02]
[1755852363396,13.79931577,4349.9,4349.8,1e-08]
[1755852363595,2.2991677,4349.4,4348.9,0.004]
[1755852363795,18.85699216,4349.4,4348.9,0.004]
[1755852364013,20.62599216,4349.4,4348.9,0.004]
[1755852364203,19.84487828,4349.4,4348.9,0.004]
[1755852364521,19.74502878,4349.4,4348.9,0.004]
[1755852364724,19.86022878,4349.4,4348.9,0.004]
[1755852365822,19.85942878,4349.4,4348.9,0.004]
[1755852366044,19.54362878,4349.4,4349.3,0.3139]
[1755852366199,20.78475079,4349.4,4349.3,0.004]
[1755852366399,16.86675079,4349.4,4349.3,0.004]
[1755852366711,20.78475079,4349.4,4349.3,0.004]
[1755852367405,19.54362878,4349.4,4349.3,0.004]
[1755852367994,14.86580225,4349.4,4349.3,0.2897]
[1755852368195,18.78180225,4349.4,4349.3,0.2897]
[1755852369322,18.78180225,4349.4,4349.3,0.004]
[1755852370191,18.78180225,4349.4,4349.3,0.2897]
[1755852370396,18.77880225,4349.4,4349.3,0.7618]
[1755852370631,18.56339659,4349.4,4349.3,0.7618]
[1755852370805,18.77875778,4349.4,4349.3,0.7618]
[1755852371199,18.77875777,4349.4,4349.3,0.2897]
[1755852371702,18.77875777,4349.4,4349.3,0.7618]
[1755852372026,19.60570941,4349.4,4349.3,0.7618]
[1755852372209,18.77875777,4349.4,4349.3,0.7618]
[1755852372412,15.69274082,4349.4,4349.3,0.7618]
[1755852372613,19.60374082,4349.4,4349.3,0.7618]
[1755852372809,6.91176926,4349.4,4349.3,0.7618]
[1755852373010,0.97122229,4349.4,4349.3,0.7618]
[1755852373208,0.47518275,4349.4,4349.3,1.06791171]
[1755852373409,0.47518275,4349.4,4349.3,0.7618]
[1755852373955,0.47518275,4349.4,4349.3,3.08401276]
[1755852374101,0.47518275,4349.4,4349.3,3.06102056]
[1755852374499,0.47518275,4349.4,4349.3,0.7618]
[1755852374950,6.48572394,4349.4,4349.3,0.004]
[1755852375103,11.2401026,4349.4,4349.3,0.004]
[1755852375302,11.0925026,4349.4,4349.3,0.2897]
[1755852375537,8.71786215,4349.4,4349.3,0.7618]
[1755852375740,10.6570471,4349.4,4349.3,0.7618]
[1755852376237,10.6570471,4349.4,4349.3,0.004]
[1755852376444,10.9434471,4349.4,4349.3,0.004]
[1755852376743,12.3783509,4349.4,4349.3,0.004]
[1755852376944,12.50760302,4349.4,4349.3,0.004]
[1755852377104,12.95060302,4349.4,4349.3,0.004]
[1755852377441,2.29937916,4349.0,4348.9,0.004]
[1755852377733,16.93520863,4349.0,4348.9,0.004]
[1755852377935,19.46927149,4349.0,4348.9,0.004]
[1755852378234,20.71038556,4349.0,4348.9,0.004]
[1755852378738,21.07040334,4349.0,4348.9,0.004]
[1755852379331,21.16262734,4349.0,4348.9,0.004]
[1755852379858,21.16280154,4349.0,4348.9,0.004]
[1755852380210,20.81804127,4349.0,4348.9,0.004]
[1755852380409,21.16282721,4349.0,4348.9,0.004]
[1755852380626,21.16283503,4349.0,4348.9,0.004]
[1755852381319,19.92170878,4349.0,4348.9,0.004]
[1755852381740,21.16290873,4349.0,4348.9,0.004]
[1755852382448,21.16283863,4349.0,4348.9,0.004]
[1755852383944,16.80883863,4349.0,4348.9,0.004]
[1755852384128,20.71583863,4349.0,4348.9,0.004]
[1755852384322,16.52243863,4349.0,4348.9,0.004]
[1755852384526,20.71583863,4349.0,4348.9,0.004]
[1755852384728,21.15883863,4349.0,4348.9,0.004]
[1755852385850,20.79882085,4349.0,4348.9,0.004]
[1755852386346,19.557691,4349.0,4348.9,0.004]
[1755852388243,33.66,4348.9,4348.1,0.004]
[1755852388449,33.66,4348.9,4344.8,0.02]
[1755852388450,12.44256476,4347.9,4346.2,0.4721]
[1755852388748,5.30049,4346.9,4346.2,0.4721]
[1755852388950,11.18622587,4346.9,4346.2,0.4721]
[1755852389154,10.97074253,4346.9,4346.2,0.4721]
[1755852389357,12.03217401,4346.9,4346.2,0.4721]
[1755852389746,12.39234647,4346.9,4346.2,0.4721]
[1755852389923,12.26281778,4346.9,4346.2,0.4721]
[1755852390225,12.8815417,4346.9,4346.2,0.4721]
[1755852391225,12.26201778,4346.9,4346.2,0.4721]
[1755852391546,12.8815417,4346.9,4346.2,0.4721]
[1755852392062,12.8815417,4346.9,4345.9,0.004]
[1755852392240,12.8815417,4346.9,4346.8,0.3057]
[1755852392241,11.75635116,4346.9,4346.8,0.3057]
[1755852392445,12.59074882,4346.9,4346.8,0.3057]
[1755852392635,11.75635116,4346.9,4346.8,0.3057]
[1755852393038,7.82935116,4346.9,4346.8,0.3057]
[1755852393341,11.75835116,4346.9,4346.8,0.3057]
[1755852394835,11.75835116,4346.9,4346.8,0.02]
[1755852395957,11.95175116,4346.9,4346.8,0.02]
[1755852396141,11.75835116,4346.9,4346.8,0.02]
[1755852397043,11.75835116,4346.9,4345.9,0.004]
[1755852397044,2.3009664,4346.0,4345.9,0.004]
[1755852397365,9.2269664,4346.0,4345.9,0.004]
[1755852397561,9.2269664,4346.0,4345.9,0.2897]
[1755852397952,9.2269664,4346.0,4345.9,0.7618]
[1755852398156,5.3009664,4346.0,4345.9,0.7618]
[1755852398332,9.2259664,4346.0,4345.9,0.7618]
[1755852398533,9.72003216,4346.0,4345.9,0.7618]
[1755852398751,9.72003216,4346.0,4345.9,0.2897]
[1755852398950,9.3411664,4346.0,4345.9,0.2897]
[1755852399236,9.8352332,4346.0,4345.9,0.2897]
[1755852400534,12.13902769,4346.0,4345.9,0.004]
[1755852400736,11.52144419,4346.0,4345.9,0.004]
[1755852400936,11.3249841,4346.0,4345.9,0.004]
[1755852401141,11.22584419,4346.0,4345.9,0.004]
[1755852402482,9.8314332,4346.0,4345.9,0.3137]
[1755852402975,9.8314332,4346.0,4345.9,0.004]
[1755852403376,6.8304332,4346.0,4345.9,0.004]
[1755852403567,9.8304332,4346.0,4345.9,0.3137]
[1755852404490,5.9094332,4346.0,4345.9,0.7837]
[1755852404847,9.8284332,4346.0,4345.9,0.7837]
[1755852405049,9.8294332,4346.0,4345.9,0.7837]
[1755852405580,5.9094332,4346.0,4345.9,0.7837]
[1755852405748,9.8284332,4346.0,4345.9,0.7837]
[1755852405942,9.8284332,4346.0,4345.9,0.3137]
[1755852406365,10.44521122,4346.0,4345.9,0.3137]
[1755852406766,6.52621122,4346.0,4345.9,0.3137]
[1755852406967,10.44421122,4346.0,4345.9,0.3137]
[1755852407752,7.44421122,4346.0,4345.9,0.3137]
[1755852408153,10.44321122,4346.0,4345.9,0.3137]
[1755852408388,9.8264332,4346.0,4345.9,0.3137]
[1755852408589,5.9094332,4346.0,4345.9,0.3137]
[1755852408757,9.8264332,4346.0,4345.9,0.3137]
[1755852408953,11.59451566,4346.0,4345.9,0.004]
[1755852410868,11.59151566,4346.0,4345.9,0.004]
[1755852411480,11.59151566,4346.0,4345.9,0.3137]
[1755852411481,11.29591566,4346.0,4345.9,0.3137]
[1755852411797,11.29591566,4346.0,4345.9,0.004]
[1755852412380,16.32152347,4346.0,4345.9,0.3137]
[1755852412803,16.32152347,4346.0,4345.9,0.004]
[1755852413102,16.68175925,4346.0,4345.9,0.004]
[1755852413304,17.509274,4346.0,4345.9,0.004]
[1755852413503,3.0,4345.9,4345.0,0.004]
[1755852413703,2.30142788,4345.2,4345.1,0.47]
[1755852413873,6.21342788,4345.2,4345.1,0.7797]
[1755852414074,4.5212668,4345.2,4345.1,0.7797]
[1755852414470,7.18291847,4345.2,4345.1,0.7797]
[1755852414671,7.18211847,4345.2,4345.1,0.7797]
[1755852415993,4.88072844,4345.2,4345.1,0.7797]
[1755852416196,0.96952844,4345.2,4345.1,0.7797]
[1755852416370,4.38546164,4345.2,4345.1,0.7797]
[1755852416567,4.87952844,4345.2,4345.1,1.4718]
[1755852416971,4.5192668,4345.2,4345.1,1.4718]
[1755852417192,5.13755669,4345.2,4345.1,1.4718]
[1755852417981,7.43894672,4345.2,4345.1,1.4718]
[1755852418280,0.6092668,4345.2,4345.1,1.4718]
[1755852418484,2.91065683,4345.2,4345.1,1.4718]
[1755852418682,0.6092668,4345.2,4345.1,1.4718]
[1755852419088,0.6092668,4345.2,4345.1,1.0018]
[1755852419275,9.4087471,4345.2,4345.1,0.3097]
[1755852419581,9.4087471,4345.2,4345.1,0.7797]